[Event "24th European Women Club Cup 2019"]
[Site "Ulcinj"]
[Date "2019.11.12"]
[Round "3.17"]
[White "Ushenina, Anna"]
[Black "Dzagnidze, Nana"]
[Result "0-1"]
[ECO "B28"]
[WhiteElo "2439"]
[BlackElo "2502"]
[Annotator "ChessBase"]
[PlyCount "120"]
[EventDate "2019.11.10"]
[EventType "team-tourn"]
[EventCountry "MNE"]
[SourceTitle "playchess.com"]
[Source "ChessBase"]
[SourceQuality "1"]
[WhiteTeam "Ugra"]
[BlackTeam "Nona"]
[TimeControl "40/5400+30:1800+30"]

1. e4 {[%emt 0:00:00]} c5 {[%emt 0:00:14]} 2. Nf3 {[%emt 0:00:00]} a6 {[%emt 0:04:31]} 3. g3 {[%emt 0:02:17]} Nc6 {[%emt 0:02:23]} 4. Bg2 {[%emt 0:01:07]} d6 {[%emt 0:03:32]} 5. O-O {[%emt 0:06:52]} g6 {[%emt 0:04:27]} 6. d4 {[%emt 0:13:48]} cxd4 {[%emt 0:03:06]} 7. Nxd4 {[%emt 0:00:01]} Bd7 {[%emt 0:00:24]} 8. h3 {[%emt 0:08:14]} Bg7 {[%emt 0:02:59]} 9. Ne2 {[%emt 0:02:31]} Nf6 {[%emt 0:04:28]} 10. Nbc3 {[%emt 0:04:01]} b5 {[%emt 0:08:11]} 11. Be3 {[%emt 0:01:52]} O-O {[%emt 0:00:30]} 12. Kh2 {[%emt 0:07:49]} Ne5 {[%emt 0:15:50]} 13. b3 {[%emt 0:03:08]} Rb8 {[%emt 0:14:20]} 14. a3 {[%emt 0:13:55]} Bc6 {[%emt 0:02:05]} 15. Qd2 {[%emt 0:03:56]} Ba8 {[%emt 0:03:32]} 16. Rfd1 {[%emt 0:04:51]} Ned7 {[%emt 0:01:41]} 17. Rac1 {[%emt 0:02:15]} Rc8 {[%emt 0:04:21]} 18. Nd5 {[%emt 0:02:33]} Nc5 {[%emt 0:01:20]} 19. f3 {[%emt 0:04:59]} Re8 {[%emt 0:02:47]} 20. Bd4 {[%emt 0:02:17]} Nh5 {[%emt 0:10:43]} 21. Bxg7 {[%emt 0:02:22]} Nxg7 {[%emt 0:00:17]} 22. h4 {[%emt 0:02:54]} Rf8 {[%emt 0:04:23]} 23. Qe3 {[%emt 0:00:41]} e6 {[%emt 0:00:24]} 24. Ndc3 {[%emt 0:01:14]} Qc7 {[%emt 0:01:19]} 25. Rd2 {[%emt 0:00:56]} Nd7 {[%emt 0:01:36]} 26. Qd4 {[%emt 0:01:35]} Ne8 {[%emt 0:00:12]} 27. a4 {[%emt 0:01:45]} Rb8 {[%emt 0:01:28]} 28. axb5 axb5 {[%emt 0:00:01]} 29. Qb4 {[%emt 0:01:19]} Qb6 {[%emt 0:01:50]} 30. Ra1 {[%emt 0:01:02]} Ne5 {[%emt 0:00:27]} 31. Nd4 {[%emt 0:04:21]} Nc7 {[%emt 0:00:19]} 32. Qa5 {[%emt 0:00:43]} Qc5 {[%emt 0:00:56]} 33. Nce2 {[%emt 0:00:16]} Bxe4 {[%emt 0:00:27]} 34. b4 {[%emt 0:00:43]} Qc4 {[%emt 0:00:03]} 35. fxe4 {[%emt 0:00:34]} Ra8 {[%emt 0:00:04]} 36. Qb6 {[%emt 0:00:22]} Rxa1 {[%emt 0:00:20]} 37. Qxd6 {[%emt 0:00:02]} Ng4+ {[%emt 0:00:59]} 38. Kh3 {[%emt 0:00:00]} Nf2+ {[%emt 0:00:45]} 39. Kh2 {[%emt 0:00:01]} Ng4+ {[%emt 0:00:01]} 40. Kh3 {[%emt 0:00:00]} e5 {[%emt 0:00:00]} 41. Kxg4 {[%emt 0:08:31]} exd4 {[%emt 0:02:14]} 42. Nxd4 {[%emt 0:00:08]} Ra6 {[%emt 0:05:00]} 43. Qc5 {[%emt 0:01:20]} Qxc5 {[%emt 0:00:53]} 44. bxc5 {[%emt 0:00:02]} Rd8 {[%emt 0:00:20]} 45. c3 {[%emt 0:02:15]} Rc6 {[%emt 0:03:25]} 46. Nxc6 {[%emt 0:01:54]} Rxd2 {[%emt 0:00:02]} 47. Bf1 {[%emt 0:03:42]} Rc2 {[%emt 0:04:24]} 48. Ne7+ {[%emt 0:07:16]} Kf8 {[%emt 0:01:13]} 49. Nd5 {[%emt 0:00:05]} Nxd5 {[%emt 0:00:05]} 50. exd5 {[%emt 0:00:03]} Rxc3 {[%emt 0:00:05]} 51. Bxb5 {[%emt 0:00:15]} Rxc5 {[%emt 0:00:05]} 52. Bc6 {[%emt 0:00:08]} Ke7 {[%emt 0:02:33]} 53. h5 {[%emt 0:00:35]} Rc4+ {[%emt 0:00:46]} 54. Kg5 {[%emt 0:00:09]} f6+ {[%emt 0:00:37]} 55. Kh6 {[%emt 0:00:03]} Rg4 {[%emt 0:00:23]} 56. Kxh7 {[%emt 0:00:14]} gxh5 {[%emt 0:00:05]} 57. Kh6 {[%emt 0:00:03]} Rg5 {[%emt 0:00:57]} 58. Bb7 {[%emt 0:00:12]} Kd6 {[%emt 0:00:08]} 59. Bc6 {[%emt 0:00:09]} Rxg3 {[%emt 0:00:14]} 60. Kxh5 {[%emt 0:00:04]} f5 {[%emt 0:00:08]} 0-1

[Event "24th European Women Club Cup 2019"]
[Site "Ulcinj"]
[Date "2019.11.12"]
[Round "3.18"]
[White "Javakhishvili, Lela"]
[Black "Pogonina, Natalija"]
[Result "1-0"]
[ECO "D35"]
[WhiteElo "2457"]
[BlackElo "2479"]
[Annotator "ChessBase"]
[PlyCount "93"]
[EventDate "2019.11.10"]
[EventType "team-tourn"]
[EventCountry "MNE"]
[SourceTitle "playchess.com"]
[Source "ChessBase"]
[SourceQuality "1"]
[WhiteTeam "Nona"]
[BlackTeam "Ugra"]
[TimeControl "40/5400+30:1800+30"]

1. d4 {[%emt 0:00:00]} d5 {[%emt 0:00:00]} 2. c4 {[%emt 0:00:00]} e6 {[%emt 0:00:00]} 3. Nc3 {[%emt 0:00:10]} Nf6 {[%emt 0:00:00]} 4. cxd5 {[%emt 0:00:16]} exd5 {[%emt 0:00:00]} 5. Bg5 {[%emt 0:00:08]} c6 {[%emt 0:00:09]} 6. e3 {[%emt 0:00:23]} Be7 {[%emt 0:00:09]} 7. Bd3 {[%emt 0:00:52]} Nbd7 {[%emt 0:00:08]} 8. Qc2 {[%emt 0:02:40]} O-O {[%emt 0:04:05]} 9. Nf3 {[%emt 0:00:12]} Re8 {[%emt 0:00:19]} 10. O-O {[%emt 0:01:13]} Nf8 {[%emt 0:00:08]} 11. h3 {[%emt 0:03:23]} Be6 {[%emt 0:00:29]} 12. Ne5 {[%emt 0:02:27]} N6d7 {[%emt 0:01:27]} 13. Bxe7 {[%emt 0:00:07]} Qxe7 {[%emt 0:00:04]} 14. f4 {[%emt 0:00:18]} f6 {[%emt 0:00:37]} 15. Nf3 {[%emt 0:00:09]} Nb6 {[%emt 0:00:47]} 16. Rae1 {[%emt 0:00:21]} Rad8 {[%emt 0:01:02]} 17. Kh1 {[%emt 0:02:09]} Nc8 {[%emt 0:05:02]} 18. g4 {[%emt 0:06:19]} Nd6 {[%emt 0:01:34]} 19. Rg1 {[%emt 0:01:57]} b5 {[%emt 0:11:24]} 20. Ne2 {[%emt 0:04:33]} Rc8 {[%emt 0:11:00]} 21. Ng3 {[%emt 0:02:50]} Ne4 {[%emt 0:07:25]} 22. Nxe4 {[%emt 0:06:41]} dxe4 {[%emt 0:00:05]} 23. Bxe4 {[%emt 0:00:07]} c5 {[%emt 0:10:13]} 24. Qb1 {[%emt 0:04:16]} Bf7 25. Bf5 {[%emt 0:04:38]} Rcd8 {[%emt 0:06:04]} 26. Kh2 {[%emt 0:09:43]} Qc7 {[%emt 0:18:17]} 27. Rg3 {[%emt 0:06:08]} cxd4 {[%emt 0:01:56]} 28. Nxd4 {[%emt 0:00:56]} Qa5 {[%emt 0:00:40]} 29. b4 {[%emt 0:03:00]} Qb6 {[%emt 0:04:51]} 30. g5 {[%emt 0:07:42]} fxg5 {[%emt 0:00:14]} 31. Rxg5 {[%emt 0:00:36]} g6 {[%emt 0:00:57]} 32. Be4 {[%emt 0:06:13]} Rxd4 {[%emt 0:05:15]} 33. exd4 {[%emt 0:00:10]} Qxd4 {[%emt 0:00:11]} 34. Re5 {[%emt 0:07:55]} Qf2+ {[%emt 0:07:05]} 35. Kh1 {[%emt 0:00:09]} Rd8 {[%emt 0:00:06]} 36. Bg2 {[%emt 0:06:50]} Rd4 {[%emt 0:01:27]} 37. R5e2 {[%emt 0:02:17]} Qh4 {[%emt 0:01:11]} 38. Rd1 {[%emt 0:05:10]} Rxf4 {[%emt 0:00:56]} 39. Re4 {[%emt 0:00:45]} Ne6 {[%emt 0:01:35]} 40. Qd3 {[%emt 0:00:00]} Rxe4 {[%emt 0:00:00]} 41. Bxe4 {[%emt 0:07:25]} Kg7 {[%emt 0:07:13]} 42. Rf1 {[%emt 0:10:01]} Ng5 {[%emt 0:04:11]} 43. Qc3+ {[%emt 0:00:23]} Kh6 {[%emt 0:02:19]} 44. Qe3 {[%emt 0:03:06]} Be6 {[%emt 0:02:06]} 45. Bg2 {[%emt 0:00:54]} Qxb4 {[%emt 0:13:54]} 46. Rf4 {[%emt 0:00:22]} Qb1+ {[%emt 0:00:39]} 47. Kh2 {[%emt 0:00:12]} 1-0

[Event "24th European Women Club Cup 2019"]
[Site "Ulcinj"]
[Date "2019.11.12"]
[Round "3.19"]
[White "Girya, Olga"]
[Black "Batsiashvili, Nino"]
[Result "1-0"]
[ECO "A40"]
[WhiteElo "2476"]
[BlackElo "2422"]
[Annotator "ChessBase"]
[PlyCount "97"]
[EventDate "2019.11.10"]
[EventType "team-tourn"]
[EventCountry "MNE"]
[SourceTitle "playchess.com"]
[Source "ChessBase"]
[SourceQuality "1"]
[WhiteTeam "Ugra"]
[BlackTeam "Nona"]
[TimeControl "40/5400+30:1800+30"]

1. d4 {[%emt 0:00:00]} e6 {[%emt 0:00:00]} 2. c4 {[%emt 0:00:00]} b6 {[%emt 0:00:00]} 3. a3 {[%emt 0:00:58]} Bb7 {[%emt 0:00:55]} 4. d5 {[%emt 0:00:10]} Nf6 {[%emt 0:01:48]} 5. Nc3 {[%emt 0:00:11]} Bd6 {[%emt 0:00:20]} 6. Nf3 {[%emt 0:03:22]} O-O {[%emt 0:05:10]} 7. e4 {[%emt 0:10:29]} exd5 {[%emt 0:00:41]} 8. exd5 {[%emt 0:00:08]} c6 {[%emt 0:09:01]} 9. Be2 {[%emt 0:02:11]} Na6 {[%emt 0:03:35]} 10. Bg5 {[%emt 0:05:27]} Re8 {[%emt 0:07:46]} 11. O-O {[%emt 0:00:29]} h6 {[%emt 0:01:06]} 12. Bh4 {[%emt 0:01:02]} Nc7 {[%emt 0:01:46]} 13. Qd2 {[%emt 0:08:57]} cxd5 {[%emt 0:05:11]} 14. cxd5 {[%emt 0:00:29]} Bf8 {[%emt 0:06:44]} 15. Bc4 {[%emt 0:06:18]} d6 {[%emt 0:00:25]} 16. Rfe1 {[%emt 0:05:05]} Be7 {[%emt 0:02:07]} 17. Rad1 {[%emt 0:06:22]} Nh5 {[%emt 0:11:24]} 18. Bxe7 {[%emt 0:05:30]} Rxe7 {[%emt 0:00:01]} 19. Nd4 {[%emt 0:00:49]} Rxe1+ {[%emt 0:07:22]} 20. Rxe1 {[%emt 0:00:10]} Qd7 {[%emt 0:03:10]} 21. Nc6 {[%emt 0:09:42]} Bxc6 {[%emt 0:00:36]} 22. dxc6 {[%emt 0:00:05]} Qxc6 {[%emt 0:00:09]} 23. Bd5 {[%emt 0:01:54]} Nxd5 {[%emt 0:00:05]} 24. Nxd5 {[%emt 0:00:04]} Qc4 {[%emt 0:05:44]} 25. h3 {[%emt 0:03:11]} Rd8 {[%emt 0:02:01]} 26. Re7 {[%emt 0:03:17]} Qh4 {[%emt 0:02:37]} 27. Rxa7 {[%emt 0:02:28]} Nf6 {[%emt 0:04:44]} 28. Ne7+ {[%emt 0:04:26]} Kh8 {[%emt 0:00:13]} 29. Nf5 {[%emt 0:01:38]} Qh5 {[%emt 0:00:13]} 30. Ng3 {[%emt 0:03:58]} Qg6 {[%emt 0:00:09]} 31. Rb7 {[%emt 0:03:18]} Nd7 {[%emt 0:09:59]} 32. Qc3 {[%emt 0:05:05]} Qe6 {[%emt 0:04:18]} 33. Qc7 {[%emt 0:03:12]} Qe8 {[%emt 0:02:42]} 34. Kh2 {[%emt 0:02:47]} d5 {[%emt 0:01:23]} 35. f4 {[%emt 0:01:31]} Nf6 {[%emt 0:01:51]} 36. Rxb6 {[%emt 0:01:50]} d4 {[%emt 0:00:04]} 37. Rd6 {[%emt 0:00:37]} Rxd6 {[%emt 0:02:18]} 38. Qxd6 {[%emt 0:00:01]} Qd7 {[%emt 0:00:43]} 39. Qxd7 {[%emt 0:00:22]} Nxd7 {[%emt 0:00:00]} 40. Kg1 {[%emt 0:00:00]} Nc5 {[%emt 0:00:00]} 41. b4 {[%emt 0:03:00]} Na4 {[%emt 0:02:27]} 42. Nf5 {[%emt 0:04:22]} d3 {[%emt 0:00:13]} 43. Kf2 {[%emt 0:00:06]} Nb2 {[%emt 0:02:05]} 44. Ke3 {[%emt 0:00:30]} g5 {[%emt 0:00:45]} 45. fxg5 {[%emt 0:00:31]} hxg5 {[%emt 0:00:00]} 46. Nd6 {[%emt 0:00:49]} Kg7 {[%emt 0:01:25]} 47. b5 {[%emt 0:00:48]} f5 {[%emt 0:01:13]} 48. b6 {[%emt 0:00:33]} f4+ {[%emt 0:00:07]} 49. Ke4 1-0

[Event "24th European Women Club Cup 2019"]
[Site "Ulcinj"]
[Date "2019.11.12"]
[Round "3.20"]
[White "Melia, Salome"]
[Black "Kovanova, Baira"]
[Result "1/2-1/2"]
[ECO "C55"]
[WhiteElo "2380"]
[BlackElo "2344"]
[Annotator "NA"]
[PlyCount "61"]
[EventDate "2019.11.10"]
[EventType "team-tourn"]
[EventCountry "MNE"]
[SourceTitle "playchess.com"]
[Source "ChessBase"]
[SourceQuality "1"]
[WhiteTeam "Nona"]
[BlackTeam "Ugra"]
[TimeControl "40/5400+30:1800+30"]

1. e4 {[%emt 0:00:00]} e5 {[%emt 0:00:00]} 2. Nf3 {[%emt 0:00:00]} Nc6 {[%emt 0:00:00]} 3. Bc4 {[%emt 0:00:00]} Nf6 {[%emt 0:00:00]} 4. d3 {[%emt 0:00:00]} Be7 {[%emt 0:00:00]} 5. O-O {[%emt 0:00:22]} O-O {[%emt 0:00:00]} 6. Re1 {[%emt 0:03:59]} d6 {[%emt 0:00:50]} 7. a4 {[%emt 0:02:11]} Be6 {[%emt 0:00:51]} 8. Nbd2 {[%emt 0:01:51]} h6 {[%emt 0:00:18]} 9. a5 {[%emt 0:00:21]} a6 {[%emt 0:00:30]} 10. Nf1 {[%emt 0:02:16]} Qd7 {[%emt 0:02:20]} 11. Ng3 {[%emt 0:02:59]} Rfe8 {[%emt 0:00:48]} 12. Bxe6 {[%emt 0:12:33]} Qxe6 {[%emt 0:03:10]} 13. c4 {[%emt 0:01:49]} Bf8 {[%emt 0:04:25]} 14. Bd2 {[%emt 0:03:47]} Qd7 {[%emt 0:03:00]} 15. b4 {[%emt 0:07:21]} g6 {[%emt 0:05:31]} 16. Qc1 {[%emt 0:05:53]} Kh7 {[%emt 0:01:16]} 17. Bc3 {[%emt 0:00:10]} Bg7 {[%emt 0:04:09]} 18. Qb2 {[%emt 0:00:22]} Qe7 {[%emt 0:15:24]} 19. h3 {[%emt 0:10:02]} Nd7 {[%emt 0:01:51]} 20. Rad1 {[%emt 0:06:14]} Qe6 {[%emt 0:13:56]} 21. Nf1 {[%emt 0:02:32]} f5 {[%emt 0:09:27]} 22. Ne3 {[%emt 0:06:51]} Qf7 {[%emt 0:03:36]} 23. exf5 {[%emt 0:13:45]} gxf5 {[%emt 0:00:05]} 24. Nh4 {[%emt 0:00:04]} Ne7 {[%emt 0:07:19]} 25. Qe2 {[%emt 0:01:52]} Rf8 {[%emt 0:09:26]} 26. Rf1 {[%emt 0:00:26]} Qf6 {[%emt 0:03:26]} 27. g3 {[%emt 0:04:57]} Qg5 {[%emt 0:01:24]} 28. Kh2 {[%emt 0:00:35]} Ng6 {[%emt 0:03:51]} 29. Nxg6 {[%emt 0:01:24]} Qxg6 {[%emt 0:00:02]} 30. Nd5 {[%emt 0:04:15]} c6 {[%emt 0:00:36]} 31. Nb6 {[%emt 0:00:08]} 1/2-1/2

[Event "24th European Women Club Cup 2019"]
[Site "Ulcinj"]
[Date "2019.11.12"]
[Round "3.21"]
[White "Gunina, Valentina"]
[Black "Rapport, Jovana"]
[Result "1-0"]
[ECO "A40"]
[WhiteElo "2509"]
[BlackElo "2379"]
[Annotator "ChessBase"]
[PlyCount "95"]
[EventDate "2019.11.10"]
[EventType "team-tourn"]
[EventCountry "MNE"]
[SourceTitle "playchess.com"]
[Source "ChessBase"]
[SourceQuality "1"]
[WhiteTeam "Maribor"]
[BlackTeam "MNE Woman Chess"]
[TimeControl "40/5400+30:1800+30"]

1. d4 {[%emt 0:00:00]} e6 {[%emt 0:00:00]} 2. c4 {[%emt 0:00:00]} b6 {[%emt 0:00:00]} 3. e4 {[%emt 0:00:00]} Bb4+ {[%emt 0:00:00]} 4. Nc3 {[%emt 0:01:02]} Bb7 {[%emt 0:00:22]} 5. Bd3 {[%emt 0:06:30]} f5 {[%emt 0:02:29]} 6. d5 {[%emt 0:02:10]} fxe4 {[%emt 0:14:44]} 7. Bxe4 {[%emt 0:00:51]} Nf6 {[%emt 0:00:38]} 8. Bg5 {[%emt 0:04:46]} exd5 {[%emt 0:01:37]} 9. Bxd5 {[%emt 0:01:59]} Qe7+ {[%emt 0:03:51]} 10. Nge2 {[%emt 0:00:59]} Bxc3+ {[%emt 0:03:07]} 11. bxc3 {[%emt 0:00:15]} Nc6 {[%emt 0:02:40]} 12. O-O {[%emt 0:02:13]} O-O-O {[%emt 0:01:38]} 13. Ng3 {[%emt 0:02:07]} Rde8 {[%emt 0:07:48]} 14. Qd2 {[%emt 0:09:15]} d6 {[%emt 0:04:49]} 15. Rae1 {[%emt 0:01:27]} Qf8 {[%emt 0:00:03]} 16. Rxe8+ {[%emt 0:05:31]} Nxe8 {[%emt 0:00:45]} 17. Nh5 {[%emt 0:00:38]} Kb8 {[%emt 0:08:31]} 18. Nf4 {[%emt 0:08:54]} Qf5 {[%emt 0:02:27]} 19. Ne6 {[%emt 0:01:37]} h6 {[%emt 0:00:19]} 20. Bh4 {[%emt 0:00:11]} Qg4 {[%emt 0:06:38]} 21. Bg3 {[%emt 0:00:47]} Nf6 {[%emt 0:00:19]} 22. Nxc7 {[%emt 0:01:58]} Kxc7 {[%emt 0:17:22]} 23. Bxc6 {[%emt 0:01:37]} Rd8 {[%emt 0:00:04]} 24. Bxb7 {[%emt 0:02:51]} Kxb7 {[%emt 0:00:01]} 25. c5 {[%emt 0:00:53]} bxc5 {[%emt 0:02:25]} 26. Rb1+ {[%emt 0:00:19]} Kc7 {[%emt 0:10:41]} 27. c4 {[%emt 0:02:14]} Qe4 {[%emt 0:07:54]} 28. Qa5+ {[%emt 0:00:16]} Kd7 {[%emt 0:00:19]} 29. Re1 {[%emt 0:00:34]} Qb7 {[%emt 0:01:21]} 30. Bxd6 {[%emt 0:01:00]} Qb6 {[%emt 0:00:05]} 31. Re7+ {[%emt 0:08:23]} Kxd6 {[%emt 0:00:32]} 32. Qe1 {[%emt 0:00:07]} Qb1 {[%emt 0:01:55]} 33. Qxb1 {[%emt 0:00:43]} Kxe7 {[%emt 0:00:00]} 34. h3 {[%emt 0:00:10]} Rd7 {[%emt 0:00:14]} 35. Qb8 {[%emt 0:00:10]} Kf7 {[%emt 0:01:07]} 36. Qc8 {[%emt 0:00:23]} Rd1+ {[%emt 0:00:02]} 37. Kh2 {[%emt 0:00:05]} Nd7 {[%emt 0:00:07]} 38. Qb7 {[%emt 0:00:17]} Rd2 {[%emt 0:00:05]} 39. Qxa7 {[%emt 0:00:19]} Ke7 {[%emt 0:00:01]} 40. Qa3 {[%emt 0:00:00]} Rc2 {[%emt 0:00:00]} 41. Qb3 {[%emt 0:00:41]} Re2 {[%emt 0:00:54]} 42. a4 {[%emt 0:00:10]} Kd8 {[%emt 0:00:22]} 43. a5 {[%emt 0:00:13]} Rxf2 {[%emt 0:01:59]} 44. a6 {[%emt 0:00:07]} Rf6 {[%emt 0:00:03]} 45. a7 {[%emt 0:00:06]} Nb6 {[%emt 0:00:03]} 46. Qxb6+ {[%emt 0:00:23]} Rxb6 {[%emt 0:00:02]} 47. a8=Q+ {[%emt 0:00:07]} Kc7 {[%emt 0:00:10]} 48. Qa7+ {[%emt 0:00:18]} 1-0

[Event "24th European Women Club Cup 2019"]
[Site "Ulcinj"]
[Date "2019.11.12"]
[Round "3.22"]
[White "Milovic, Aleksandra"]
[Black "Caglar, Sila"]
[Result "1-0"]
[ECO "A01"]
[WhiteElo "2183"]
[BlackElo "2242"]
[Annotator "NA"]
[PlyCount "49"]
[EventDate "2019.11.10"]
[EventType "team-tourn"]
[EventCountry "MNE"]
[SourceTitle "playchess.com"]
[Source "ChessBase"]
[SourceQuality "1"]
[WhiteTeam "MNE Woman Chess"]
[BlackTeam "Maribor"]
[TimeControl "40/5400+30:1800+30"]

1. b3 {[%emt 0:00:00]} d5 {[%emt 0:00:00]} 2. Bb2 {[%emt 0:00:00]} c5 {[%emt 0:00:00]} 3. e3 {[%emt 0:01:05]} Nf6 {[%emt 0:00:00]} 4. Ne2 {[%emt 0:01:25]} Nc6 {[%emt 0:01:37]} 5. g3 {[%emt 0:01:21]} e5 {[%emt 0:04:16]} 6. Bg2 {[%emt 0:01:14]} Be7 {[%emt 0:00:50]} 7. O-O {[%emt 0:01:02]} O-O {[%emt 0:00:22]} 8. f4 {[%emt 0:05:41]} e4 {[%emt 0:02:18]} 9. h3 {[%emt 0:02:14]} h5 {[%emt 0:07:21]} 10. f5 {[%emt 0:26:06]} g6 {[%emt 0:04:15]} 11. fxg6 {[%emt 0:01:18]} fxg6 {[%emt 0:00:02]} 12. Nf4 {[%emt 0:01:04]} Qe8 {[%emt 0:05:21]} 13. Nc3 {[%emt 0:01:09]} Bf5 {[%emt 0:18:26]} 14. Ncxd5 {[%emt 0:02:59]} Nxd5 {[%emt 0:05:11]} 15. Nxd5 {[%emt 0:00:06]} Bd6 {[%emt 0:00:14]} 16. g4 {[%emt 0:08:17]} hxg4 {[%emt 0:01:54]} 17. hxg4 {[%emt 0:00:05]} Be5 {[%emt 0:09:47]} 18. Bxe5 {[%emt 0:00:22]} Qxe5 {[%emt 0:00:03]} 19. gxf5 {[%emt 0:02:23]} Qxd5 {[%emt 0:00:06]} 20. Qg4 {[%emt 0:01:02]} Qxd2 {[%emt 0:04:36]} 21. Qxg6+ Kh8 22. Qh6+ {[%emt 0:04:58]} Kg8 {[%emt 0:00:03]} 23. Qg5+ {[%emt 0:01:50]} Kh8 24. Rad1 {[%emt 0:01:17]} Qxg2+ {[%emt 0:02:15]} 25. Kxg2 {[%emt 0:00:21]} 1-0

[Event "24th European Women Club Cup 2019"]
[Site "Ulcinj"]
[Date "2019.11.12"]
[Round "3.23"]
[White "Vidic, Teja"]
[Black "Koljevic, Nikolina"]
[Result "1-0"]
[ECO "A05"]
[WhiteElo "2189"]
[BlackElo "1902"]
[Annotator "NA"]
[PlyCount "35"]
[EventDate "2019.11.10"]
[EventType "team-tourn"]
[EventCountry "MNE"]
[SourceTitle "playchess.com"]
[Source "ChessBase"]
[SourceQuality "1"]
[WhiteTeam "Maribor"]
[BlackTeam "MNE Woman Chess"]
[TimeControl "40/5400+30:1800+30"]

1. Nf3 {[%emt 0:00:00]} Nf6 {[%emt 0:00:06]} 2. c4 {[%emt 0:00:00]} e6 {[%emt 0:00:22]} 3. b3 {[%emt 0:00:00]} b6 {[%emt 0:00:34]} 4. g3 {[%emt 0:00:00]} Bb7 {[%emt 0:00:09]} 5. Bg2 {[%emt 0:00:11]} Be7 {[%emt 0:00:36]} 6. O-O {[%emt 0:00:18]} O-O {[%emt 0:00:50]} 7. Bb2 {[%emt 0:01:31]} d6 {[%emt 0:01:31]} 8. Nc3 {[%emt 0:01:46]} Nbd7 {[%emt 0:01:19]} 9. d4 {[%emt 0:04:16]} Re8 {[%emt 0:03:05]} 10. Re1 {[%emt 0:03:51]} Bf8 {[%emt 0:02:47]} 11. e4 {[%emt 0:01:28]} e5 {[%emt 0:01:29]} 12. Nd5 {[%emt 0:05:29]} exd4 {[%emt 0:05:51]} 13. Nxd4 {[%emt 0:02:35]} a6 {[%emt 0:05:09]} 14. Qf3 {[%emt 0:05:09]} c5 {[%emt 0:15:16]} 15. Nf5 {[%emt 0:01:51]} Ne5 {[%emt 0:01:27]} 16. Nh6+ {[%emt 0:02:49]} gxh6 {[%emt 0:02:24]} 17. Nxf6+ {[%emt 0:00:06]} Kh8 {[%emt 0:00:16]} 18. Qf5 {[%emt 0:00:38]} 1-0

[Event "24th European Women Club Cup 2019"]
[Site "Ulcinj"]
[Date "2019.11.12"]
[Round "3.24"]
[White "Rakic, Tijana"]
[Black "Mihevc-Mohr, Narcisa"]
[Result "0-1"]
[ECO "B33"]
[WhiteElo "1680"]
[BlackElo "1982"]
[Annotator "NA"]
[PlyCount "38"]
[EventDate "2019.11.10"]
[EventType "team-tourn"]
[EventCountry "MNE"]
[SourceTitle "playchess.com"]
[Source "ChessBase"]
[SourceQuality "1"]
[WhiteTeam "MNE Woman Chess"]
[BlackTeam "Maribor"]
[TimeControl "40/5400+30:1800+30"]

1. e4 {[%emt 0:00:00]} c5 {[%emt 0:00:00]} 2. Nf3 {[%emt 0:00:00]} Nc6 {[%emt 0:00:00]} 3. d4 {[%emt 0:00:00]} cxd4 {[%emt 0:00:05]} 4. Nxd4 {[%emt 0:00:00]} Nf6 {[%emt 0:00:09]} 5. Nc3 {[%emt 0:00:04]} e6 {[%emt 0:00:04]} 6. Nxc6 {[%emt 0:00:11]} bxc6 {[%emt 0:01:17]} 7. e5 {[%emt 0:00:07]} Nd5 {[%emt 0:02:27]} 8. Ne4 {[%emt 0:00:27]} Qa5+ {[%emt 0:12:26]} 9. c3 {[%emt 0:00:35]} f5 {[%emt 0:44:51]} 10. exf6 {[%emt 0:04:43]} Nxf6 {[%emt 0:03:34]} 11. Nd6+ {[%emt 0:03:48]} Bxd6 {[%emt 0:02:39]} 12. Qxd6 {[%emt 0:00:10]} Qd5 {[%emt 0:11:46]} 13. Qg3 {[%emt 0:06:40]} O-O {[%emt 0:03:23]} 14. c4 {[%emt 0:06:02]} Qe4+ {[%emt 0:00:41]} 15. Be2 {[%emt 0:12:16]} Ba6 {[%emt 0:03:27]} 16. f3 {[%emt 0:06:05]} Qc2 {[%emt 0:00:26]} 17. Bh6 {[%emt 0:12:11]} Rf7 {[%emt 0:01:49]} 18. b3 {[%emt 0:05:00]} Qc3+ {[%emt 0:00:45]} 19. Kf2 {[%emt 0:01:52]} Ne4+ {[%emt 0:00:09]} 0-1

[Event "24th European Women Club Cup 2019"]
[Site "Ulcinj"]
[Date "2019.11.12"]
[Round "3.25"]
[White "Lahav, Michal"]
[Black "Len, Irina"]
[Result "1-0"]
[ECO "B01"]
[WhiteElo "2221"]
[BlackElo "2036"]
[Annotator "NA"]
[PlyCount "78"]
[EventDate "2019.11.10"]
[EventType "team-tourn"]
[EventCountry "MNE"]
[SourceTitle "playchess.com"]
[Source "ChessBase"]
[SourceQuality "1"]
[WhiteTeam "Rishon Lezion"]
[BlackTeam "Hertzeliya"]
[TimeControl "40/5400+30:1800+30"]

1. e4 {[%emt 0:00:00]} d5 {[%emt 0:00:00]} 2. exd5 {[%emt 0:00:00]} Qxd5 {[%emt 0:00:00]} 3. Nc3 {[%emt 0:00:00]} Qd6 {[%emt 0:00:06]} 4. d4 {[%emt 0:00:12]} Nf6 {[%emt 0:00:13]} 5. Nf3 {[%emt 0:00:10]} a6 {[%emt 0:00:12]} 6. Bd3 {[%emt 0:00:14]} Nc6 {[%emt 0:00:58]} 7. Ne4 {[%emt 0:00:54]} Nxe4 {[%emt 0:01:58]} 8. Bxe4 {[%emt 0:00:06]} Bg4 {[%emt 0:00:13]} 9. O-O {[%emt 0:02:40]} O-O-O {[%emt 0:06:01]} 10. h3 {[%emt 0:08:35]} Bh5 {[%emt 0:03:18]} 11. Be3 {[%emt 0:03:44]} e6 {[%emt 0:06:04]} 12. Bxc6 {[%emt 0:17:06]} Qxc6 {[%emt 0:09:22]} 13. Ne5 {[%emt 0:00:19]} Bxd1 {[%emt 0:00:14]} 14. Nxc6 {[%emt 0:00:05]} bxc6 {[%emt 0:00:09]} 15. Raxd1 {[%emt 0:02:52]} Bd6 {[%emt 0:01:17]} 16. Rd3 {[%emt 0:01:17]} Kd7 {[%emt 0:01:54]} 17. Rfd1 {[%emt 0:02:06]} Rb8 {[%emt 0:00:46]} 18. Bc1 {[%emt 0:02:38]} Rhd8 {[%emt 0:06:30]} 19. Kf1 {[%emt 0:05:06]} Ke8 {[%emt 0:04:53]} 20. Re1 {[%emt 0:00:30]} Kf8 {[%emt 0:02:21]} 21. Re4 {[%emt 0:00:05]} c5 {[%emt 0:14:53]} 22. d5 {[%emt 0:03:41]} exd5 {[%emt 0:05:22]} 23. Rxd5 {[%emt 0:00:05]} Re8 {[%emt 0:01:26]} 24. Ra4 {[%emt 0:10:19]} Rb4 {[%emt 0:14:05]} 25. Rxa6 {[%emt 0:02:42]} Rbe4 {[%emt 0:00:10]} 26. Rd1 {[%emt 0:07:41]} Re2 {[%emt 0:00:50]} 27. Bd2 {[%emt 0:00:10]} f5 {[%emt 0:07:06]} 28. Ra4 {[%emt 0:03:27]} g5 {[%emt 0:04:22]} 29. Rc4 {[%emt 0:00:16]} f4 {[%emt 0:00:21]} 30. Be3 {[%emt 0:00:48]} Rxc2 {[%emt 0:01:19]} 31. Rxc2 {[%emt 0:00:19]} fxe3 {[%emt 0:00:07]} 32. fxe3 {[%emt 0:01:52]} Rxe3 {[%emt 0:01:39]} 33. Re2 {[%emt 0:00:05]} Re7 {[%emt 0:00:56]} 34. Rxe7 {[%emt 0:00:11]} Kxe7 {[%emt 0:00:01]} 35. Ke2 {[%emt 0:00:18]} Kd7 {[%emt 0:01:59]} 36. Kf3 {[%emt 0:00:29]} Kc6 {[%emt 0:00:19]} 37. Ke4 {[%emt 0:02:36]} h5 {[%emt 0:00:30]} 38. Kf5 {[%emt 0:02:58]} Be7 {[%emt 0:00:58]} 39. Re1 {[%emt 0:00:10]} Kd5 {Ke4+} 1-0